bitfinex/quotes_ETHUSD_20240603
["timestamp","ask_amount","ask_price","bid_price","bid_amount"]
[1717433697313,8.02647532,3765.8,3765.7,4.78807635]
[1717433698012,6.9595029,3765.8,3765.7,7.58207635]
[1717433698216,6.9595029,3765.8,3765.7,10.58207635]
[1717433699003,6.9595029,3765.8,3765.7,13.23761635]
[1717433700578,6.9595029,3765.8,3765.7,10.58207635]
[1717433700870,6.9595029,3765.8,3765.7,15.50201635]
[1717433701513,6.9595029,3765.8,3765.7,12.84647635]
[1717433701674,6.9595029,3765.8,3765.7,15.50201635]
[1717433702504,6.9595029,3765.8,3765.7,12.84647635]
[1717433702709,6.9595029,3765.8,3765.7,15.50201635]
[1717433702931,6.9595029,3765.8,3765.7,10.58207635]
[1717433703118,6.66850419,3765.8,3765.7,12.31007635]
[1717433703421,6.62856714,3765.8,3765.7,17.33821635]
[1717433704484,6.36856714,3765.8,3765.7,17.33821635]
[1717433705298,6.33856714,3765.8,3765.7,17.33821635]
[1717433705614,6.10856714,3765.8,3765.7,17.33821635]
[1717433706377,5.84956714,3765.8,3765.7,17.33821635]
[1717433706626,5.64042714,3765.8,3765.7,17.33821635]
[1717433706829,0.54840971,3767.4,3767.1,2.65454]
[1717433707042,2.3602,3767.6,3767.2,1.32126577]
[1717433707255,0.54840971,3767.8,3767.4,1.728]
[1717433707458,2.95570971,3768.0,3767.6,2.65418]
[1717433707634,0.45299417,3767.9,3767.7,1.32126577]
[1717433707801,0.54840971,3768.1,3767.7,1.32126577]
[1717433708006,11.30330555,3768.4,3767.7,1.32126577]
[1717433708007,0.54840971,3768.2,3767.7,1.32126577]
[1717433708203,1.26743298,3768.2,3767.7,1.32126577]
[1717433708444,1.12457434,3768.1,3767.8,1.32126577]
[1717433708813,1.81584269,3768.2,3767.8,1.32126577]
[1717433709018,0.44823436,3768.1,3767.8,3.97527577]
[1717433709249,0.54840971,3768.3,3767.8,3.97527577]
[1717433709455,1.67301497,3768.3,3767.8,3.97527577]
[1717433709826,1.12460526,3768.3,3767.8,3.97527577]
[1717433710028,2.95570971,3768.4,3767.8,3.97527577]
[1717433710227,1.1246058,3768.3,3767.8,3.97527577]
[1717433710429,0.54840971,3768.6,3768.1,2.65383]
[1717433710628,3.55061943,3768.9,3768.0,1.728]
[1717433710629,0.54840971,3768.7,3768.3,2.6537]
[1717433710845,1.09681943,3769.1,3768.4,3.04926577]
[1717433710846,0.54840971,3769.0,3768.4,3.04926577]
[1717433711048,0.44832677,3768.9,3768.4,3.04926577]
[1717433711242,0.54840971,3769.1,3768.4,3.04926577]
[1717433711432,0.38512243,3769.1,3768.4,3.04926577]
[1717433711919,0.54840971,3769.3,3768.8,1.728]
[1717433712121,2.4524,3769.2,3768.4,1.728]
[1717433712323,2.4524,3769.2,3768.4,1.32126577]
[1717433712324,0.54840971,3769.0,3768.4,1.32126577]
[1717433712752,0.54840971,3768.8,3767.8,4.38206]
[1717433712945,2.3897,3768.6,3767.9,1.32126577]
[1717433713272,2.65367,3768.4,3767.0,2.65463]
[1717433713570,0.54840971,3768.2,3767.0,2.65463]
[1717433713765,0.98003701,3768.1,3767.0,2.65463]
[1717433714085,1.97610781,3768.1,3767.0,2.65463]
[1717433714369,2.65401,3767.9,3767.0,2.65463]
[1717433714599,2.65401,3767.9,3766.6,4.38288]
[1717433714759,2.65416,3767.7,3767.1,1.32126577]
[1717433714961,0.493276,3767.6,3767.1,1.32126577]
[1717433716474,2.65429,3767.5,3766.6,2.65488]
[1717433716685,0.44746309,3767.4,3766.7,1.32126577]
[1717433716854,0.52662402,3767.3,3766.7,1.32126577]
[1717433717054,1.04168571,3767.6,3766.8,2.65471]
[1717433717300,0.44751441,3767.5,3767.0,2.6546]
[1717433717504,0.54840971,3767.9,3767.3,1.728]
[1717433717691,0.54840971,3768.1,3767.4,1.32126577]
[1717433718000,0.54840971,3768.2,3767.4,1.32126577]
[1717433718410,1.67153582,3768.2,3767.8,2.65406]
[1717433718582,0.54840971,3768.4,3767.9,1.32126577]
[1717433718770,1.12309025,3768.4,3767.9,1.32126577]
[1717433718970,2.88480971,3768.5,3767.9,1.32126577]
[1717433718971,2.3364,3768.5,3767.9,1.32126577]
[1717433719195,3.20178971,3768.8,3767.9,1.32126577]
[1717433719512,0.44745041,3768.7,3768.0,2.65391]
[1717433719807,0.54840971,3768.9,3768.2,2.65374]
[1717433720113,0.54840971,3769.0,3768.3,1.32126577]
[1717433720268,0.54840971,3769.1,3768.3,1.32126577]
[1717433720618,0.44739106,3769.0,3768.3,1.32126577]
[1717433720985,1.34587831,3769.2,3768.3,1.32126577]
[1717433721212,1.12262078,3769.1,3768.3,1.32126577]
[1717433721407,3.20134971,3769.4,3768.4,2.6536]
[1717433721708,1.29984521,3769.3,3768.5,1.32126577]
[1717433721878,0.85253711,3769.3,3768.5,1.32126577]
[1717433724770,2.65309,3769.2,3768.5,1.32126577]
[1717433726828,3.20123971,3769.6,3768.6,2.65349]
[1717433726992,0.29473286,3769.5,3768.7,1.32126577]
[1717433730622,0.29473286,3769.5,3768.8,2.65335]
[1717433730807,2.65283,3769.6,3768.9,1.32126577]
[1717433731818,0.02365767,3769.5,3768.9,1.32126577]
[1717433734134,0.02365767,3769.5,3769.0,2.65319]
[1717433734460,2.2501,3769.9,3769.1,1.32126577]
[1717433734652,0.02324477,3769.4,3769.1,1.32126577]
[1717433734810,2.2501,3769.9,3769.1,1.32126577]
[1717433735010,0.02319979,3769.3,3769.1,1.32126577]
[1717433735206,0.70279836,3769.8,3769.1,1.32126577]
[1717433735410,0.02319979,3769.3,3769.1,1.32126577]
[1717433735626,0.70279836,3769.8,3769.1,1.32126577]
[1717433735842,0.02319979,3769.3,3769.1,1.32126577]
[1717433736149,0.70279836,3769.8,3769.1,1.32126577]
[1717433736322,0.71823723,3769.7,3769.1,1.32126577]
[1717433736647,3.39438608,3769.7,3768.6,2.65346]
[1717433736856,3.39438608,3769.7,3768.7,1.32126577]
[1717433737056,4.97218392,3769.7,3768.7,1.32126577]
[1717433737439,2.65289,3769.5,3768.7,1.32126577]
[1717433737753,0.55456986,3769.4,3768.7,1.32126577]
[1717433737914,0.5777938,3769.4,3768.7,1.32126577]
[1717433739009,0.02322394,3769.4,3768.8,2.65333]
[1717433739211,2.29591418,3769.7,3768.9,1.32126577]
[1717433739410,0.02319592,3769.3,3768.9,1.32126577]
[1717433739640,2.29591418,3769.7,3768.9,1.32126577]
[1717433739849,0.45460142,3769.6,3768.9,1.32126577]
[1717433740050,0.47791531,3769.6,3768.9,1.32126577]
[1717433742359,0.47791531,3769.6,3769.0,2.65321]
[1717433742663,0.47791531,3769.6,3769.1,1.32126577]
[1717433742958,0.37040749,3769.5,3768.6,2.65343]
[1717433743163,0.37040749,3769.5,3768.7,1.32126577]
[1717433743362,0.02322394,3769.4,3768.7,1.32126577]
[1717433743673,2.65301,3769.3,3768.7,1.32126577]
[1717433743827,0.30466414,3769.2,3768.7,1.32126577]
[1717433744363,2.65316,3769.1,3768.7,1.32126577]
[1717433744728,2.65316,3769.1,3768.2,2.65371]
[1717433744931,0.44749712,3769.0,3768.3,1.32126577]
[1717433745126,2.6535,3768.6,3767.9,7.32]
[1717433745465,2.65367,3768.4,3767.9,1.32126577]
[1717433746170,2.65367,3768.4,3767.4,2.65429]
[1717433746477,2.65381,3768.2,3767.5,1.32126577]
[1717433746769,3.34016831,3768.2,3767.5,1.32126577]
[1717433747864,0.44767514,3768.1,3767.5,1.32126577]
[1717433748627,2.65396,3768.0,3767.0,9.97458]
[1717433748826,4.23104039,3768.0,3767.1,1.32126577]
[1717433749076,2.65407,3767.8,3767.1,1.32126577]
[1717433749233,0.37040749,3767.7,3767.1,1.32126577]
[1717433749436,0.81802107,3767.7,3767.1,1.32126577]
[1717433749863,0.37040749,3767.7,3767.1,1.32126577]
[1717433751362,0.44769308,3767.6,3767.1,1.32126577]
[1717433751562,0.44769308,3767.5,3767.1,1.32126577]
[1717433751764,0.30466414,3767.6,3767.1,1.32126577]
[1717433751931,0.44765776,3767.5,3767.1,1.32126577]
[1717433752328,0.30466414,3767.6,3767.1,1.32126577]
[1717433752644,0.54840971,3767.7,3767.1,1.32126577]
[1717433753029,1.67179616,3767.7,3767.1,1.32126577]
[1717433753252,0.44770324,3767.6,3767.1,1.32126577]
[1717433753462,2.65407,3767.8,3767.1,1.32126577]
[1717433753463,0.54840971,3767.8,3767.3,1.728]
[1717433753654,0.44769823,3767.7,3767.4,1.32126577]
[1717433753869,0.54840971,3768.0,3767.4,1.32126577]
[1717433754169,1.67184425,3768.0,3767.4,1.32126577]
[1717433754379,1.12343454,3767.9,3767.4,1.32126577]
[1717433754526,0.54840971,3768.0,3767.5,2.65427]
[1717433754732,0.54840971,3768.0,3767.6,1.32126577]
[1717433754931,0.54840971,3768.1,3767.6,1.32126577]
[1717433755166,0.67574658,3768.0,3767.6,1.32126577]
[1717433755368,0.54840971,3768.1,3767.6,1.32126577]
[1717433755673,0.67575549,3768.0,3767.6,1.32126577]
[1717433755980,0.99614889,3768.1,3767.6,1.32126577]
[1717433756148,1.12348971,3768.0,3767.6,1.32126577]
[1717433756346,0.44773918,3767.9,3767.6,1.32126577]
[1717433756528,0.54840971,3768.1,3767.6,1.32126577]
[1717433756760,0.99614457,3768.1,3767.6,1.32126577]
[1717433756937,0.67574892,3768.0,3767.6,1.32126577]
[1717433757132,0.44773486,3767.9,3767.6,1.32126577]
[1717433757371,0.54840971,3768.1,3767.6,1.32126577]
[1717433757572,0.67571953,3768.0,3767.6,1.32126577]
[1717433757731,0.44771538,3767.9,3767.6,1.32126577]
[1717433757932,0.54840971,3768.1,3767.6,1.32126577]
[1717433758149,0.67574888,3768.0,3767.6,1.32126577]
[1717433758346,0.44773483,3767.9,3767.6,1.32126577]
[1717433758555,0.54840971,3768.1,3767.6,1.32126577]
[1717433758762,0.67575128,3768.0,3767.6,1.32126577]
[1717433758959,0.99614612,3768.1,3767.1,2.65451]
[1717433759148,1.12344517,3768.0,3767.2,1.32126577]
[1717433759359,0.44768844,3767.9,3767.2,1.32126577]
[1717433759567,0.44768844,3767.9,3767.2,2.17104335]
[1717433759878,0.54840971,3768.0,3767.3,2.65439]
[1717433760040,2.65373,3768.3,3767.4,1.32126577]
[1717433760041,0.44769337,3767.9,3767.4,1.32126577]
[1717433760242,0.54840971,3768.1,3767.4,1.32126577]
[1717433760436,0.54840971,3768.1,3767.5,0.48254333]
[1717433760437,0.67569701,3768.0,3767.5,0.48254333]
[1717433760642,0.54840971,3768.1,3767.6,1.32126577]
[1717433761063,0.99621662,3768.2,3767.6,1.32126577]
[1717433761373,0.54840971,3768.2,3767.6,1.32126577]
[1717433761574,1.67227044,3768.1,3767.6,1.32126577]
[1717433761736,0.44788507,3768.0,3767.6,1.32126577]
[1717433761936,0.54840971,3768.1,3767.6,1.32126577]
[1717433762372,0.99629861,3768.1,3767.6,1.32126577]
[1717433762698,0.6760497,3768.2,3767.9,1.728]
[1717433762699,0.54840971,3768.2,3767.9,1.728]
[1717433762837,0.54840971,3768.5,3767.9,3.85998835]
[1717433763034,1.12414236,3768.6,3767.9,1.32126577]
[1717433763283,1.67270291,3768.5,3767.9,1.32126577]
[1717433763479,1.67270291,3768.4,3767.9,1.32126577]
[1717433763638,0.82261457,3768.6,3767.9,1.32126577]
[1717433763639,0.44799705,3768.3,3767.9,1.32126577]
[1717433763977,0.54840971,3768.5,3767.9,1.32126577]
[1717433764283,1.67294101,3768.4,3767.9,1.32126577]
[1717433764448,0.44815212,3768.3,3767.9,1.32126577]
[1717433764655,0.54840971,3768.4,3767.9,1.32126577]
[1717433765067,0.44820515,3768.3,3767.9,1.32126577]
[1717433765256,0.54840971,3768.4,3768.0,3.97513577]
[1717433765458,0.54840971,3768.4,3766.9,2.65467]
[1717433765459,2.65379,3768.2,3766.9,2.65467]
[1717433765792,2.65404,3767.9,3767.0,3.0]
[1717433766080,1.67300115,3767.8,3767.0,3.0]
[1717433766250,1.12459144,3767.7,3767.1,3.97578577]
[1717433766449,0.54840971,3767.8,3767.1,3.97578577]
[1717433766987,0.99648706,3767.9,3767.1,3.97578577]
[1717433767168,0.44807735,3767.7,3767.1,3.97578577]
[1717433767340,0.54840971,3767.8,3767.1,3.97578577]
[1717433767541,0.99648706,3767.8,3767.1,1.32126577]
[1717433767872,1.12425038,3767.7,3767.1,1.32126577]
[1717433768177,2.67290521,3768.1,3767.3,2.6544]
[1717433768178,0.54840971,3767.9,3767.3,2.6544]
[1717433768475,0.54840971,3768.2,3767.4,1.32126577]
[1717433768885,0.99644559,3768.2,3767.4,1.32126577]
[1717433769256,5.07394141,3768.1,3767.4,1.32126577]
[1717433769481,0.54840971,3767.9,3767.4,1.32126577]
[1717433769672,1.12423934,3768.0,3766.9,5.65468]
[1717433769673,4.32672905,3767.8,3766.9,2.65468]
[1717433769980,1.6724186,3767.7,3766.9,2.65468]
[1717433770189,0.54840971,3767.6,3766.9,2.65468]
[1717433771110,0.44794429,3767.5,3766.9,2.65468]
[1717433771400,0.54840971,3767.7,3766.9,2.65468]
[1717433771573,1.67213465,3767.7,3766.9,2.65468]
[1717433771779,0.44783118,3767.6,3766.9,2.65468]
[1717433771998,0.54840971,3767.7,3766.9,2.65468]
[1717433772202,2.24584588,3767.7,3766.9,2.65468]
[1717433772495,0.44782442,3767.6,3766.9,2.65468]
[1717433772811,2.12449549,3767.4,3765.8,2.4096]
[1717433773018,0.54840971,3767.0,3765.8,4.1376]
[1717433773312,3.24815023,3767.0,3765.8,4.1376]
[1717433773602,2.12449549,3767.1,3765.8,4.1376]
[1717433773903,2.6547,3766.9,3766.1,2.65524]
[1717433774265,2.6547,3766.9,3766.2,1.32126577]
[1717433776561,2.6547,3766.9,3766.2,1.71891635]
[1717433777185,2.6547,3766.9,3766.2,3.44691635]
[1717433777390,2.12449549,3767.2,3766.3,2.65508]
[1717433777594,2.12449549,3767.2,3766.5,2.65494]
[1717433777595,0.5738281,3767.2,3766.5,2.65494]
[1717433777797,0.57382037,3767.2,3767.1,2.65456]
[1717433777968,2.12449549,3767.8,3767.1,3.97582577]
[1717433778167,1.09681943,3768.2,3767.1,3.97582577]
[1717433778168,2.12449549,3767.9,3767.2,1.32126577]
[1717433778372,0.44750973,3767.8,3767.2,1.32126577]
[1717433779198,2.69815389,3767.9,3767.2,1.32126577]
[1717433779381,1.12314374,3767.8,3767.2,1.32126577]
[1717433779584,0.44758774,3767.8,3767.2,1.32126577]
[1717433779802,0.44758774,3767.8,3767.2,1.89164835]
[1717433780483,0.54840971,3767.9,3767.2,1.89164835]
[1717433780682,2.24544709,3767.9,3767.2,1.89164835]
[1717433780871,0.44767591,3767.8,3767.2,1.89164835]
[1717433781071,1.12211151,3767.9,3767.2,1.89164835]
[1717433781275,1.12356578,3767.8,3767.3,3.28182084]
[1717433781471,0.54840971,3768.0,3767.4,1.32126577]
[1717433781676,2.24571094,3768.0,3767.4,1.32126577]
[1717433781912,0.44779241,3767.9,3767.4,1.32126577]
[1717433782122,4.57606641,3768.1,3767.5,2.80870866]
[1717433782123,0.54840971,3768.1,3767.5,2.80870866]
[1717433782281,1.6723872,3768.1,3767.6,1.32126577]
[1717433782478,0.44793159,3768.0,3767.6,1.32126577]
[1717433782677,0.54840971,3768.2,3767.6,1.32126577]
[1717433782916,1.6723347,3768.2,3767.6,1.32126577]
[1717433783214,0.44791061,3768.1,3767.6,2.0624453]
[1717433783623,0.54840971,3768.2,3767.6,2.0624453]
[1717433783824,0.99639488,3768.2,3767.6,2.0624453]
[1717433784279,1.12406375,3768.1,3767.6,4.7166353]
[1717433784476,0.44798517,3768.0,3767.6,4.7166353]
[1717433784680,0.54840971,3768.2,3767.7,0.9253344]
[1717433784924,0.4479921,3768.1,3767.8,1.32126577]
[1717433785219,0.54840971,3768.3,3767.8,1.32126577]
[1717433785538,0.99644649,3768.3,3767.8,1.32126577]
[1717433785715,0.99644649,3768.3,3767.9,3.14405902]
[1717433786021,0.54840971,3768.5,3768.1,2.65385]
[1717433786325,0.99655477,3768.5,3768.2,1.32126577]
[1717433786487,0.44826538,3768.4,3768.2,1.32126577]
[1717433786687,0.54840971,3768.6,3768.2,1.32126577]
[1717433787027,0.44826113,3768.5,3768.2,1.32126577]
[1717433787206,0.44826113,3768.4,3768.2,1.32126577]
[1717433787829,0.54840971,3768.6,3768.3,2.65371]
[1717433788119,0.54840971,3768.6,3768.4,1.32126577]
[1717433788120,0.44834619,3768.5,3768.4,1.32126577]
[1717433788507,0.82261457,3768.8,3768.4,1.32126577]
[1717433788508,0.54840971,3768.8,3768.4,1.32126577]
[1717433788823,1.12540499,3768.7,3768.4,1.32126577]
[1717433789117,0.44850003,3768.6,3768.4,1.32126577]
[1717433789318,0.54840971,3768.7,3768.4,1.32126577]
[1717433789573,0.44858481,3768.6,3768.4,1.32126577]
[1717433789922,0.54840971,3768.7,3768.4,1.32126577]
[1717433790128,0.44858684,3768.6,3768.4,1.32126577]
[1717433790329,0.54840971,3768.7,3768.4,1.93621529]
[1717433790629,0.44860481,3768.6,3768.4,1.93621529]
[1717433790826,0.54840971,3768.8,3768.4,1.93621529]
[1717433791124,1.67411367,3768.7,3768.4,1.93621529]
[1717433791310,0.44861917,3768.6,3768.4,1.93621529]
[1717433791514,0.82261457,3768.9,3768.5,0.92447448]
[1717433791515,0.54840971,3768.9,3768.5,0.92447448]
[1717433791721,0.44860222,3768.8,3768.6,1.32126577]
[1717433791903,0.54840971,3768.9,3768.6,3.97475577]
[1717433792088,0.44860581,3768.8,3768.6,3.97475577]
[1717433792490,1.09681943,3769.3,3768.6,3.97475577]
[1717433792491,0.54840971,3769.0,3768.6,3.97475577]
[1717433792692,0.44851639,3768.9,3768.6,3.97475577]
[1717433792992,0.54840971,3769.0,3768.6,4.29808884]
[1717433793214,0.44851601,3768.9,3768.6,4.29808884]
[1717433794512,0.54840971,3769.1,3768.6,7.09208884]
[1717433794715,0.44827993,3769.0,3768.9,2.65326]
[1717433794919,0.54840971,3769.2,3768.9,3.97452577]
[1717433795115,0.44830539,3769.1,3769.0,1.32126577]
[1717433795433,0.54840971,3769.3,3769.0,1.32126577]
[1717433795600,0.44820358,3769.2,3769.0,1.32126577]
[1717433796132,0.44820358,3769.2,3768.5,5.30598448]
[1717433796298,0.44820358,3769.1,3768.6,1.32126577]
[1717433796495,0.44820358,3769.0,3768.6,1.32126577]
[1717433796695,0.44820358,3769.0,3768.7,2.65342]
[1717433796919,0.54840971,3769.3,3768.8,1.32126577]
[1717433797097,0.82261457,3769.5,3768.8,1.32126577]
[1717433797098,0.44805421,3769.2,3768.8,1.32126577]
[1717433797299,0.54840971,3769.4,3768.8,1.32126577]
[1717433797839,0.99640047,3769.4,3768.8,1.32126577]
[1717433798139,0.44799076,3769.3,3768.8,1.32126577]
[1717433798434,0.44799076,3769.3,3768.8,1.95608511]
[1717433798633,0.54840971,3769.5,3769.0,2.65321]
[1717433798809,0.54840971,3769.5,3769.1,1.32126577]
[1717433799016,0.54840971,3769.6,3769.1,1.32126577]
[1717433800142,0.54840971,3769.7,3769.2,2.65305]
[1717433800341,0.54840971,3769.8,3769.3,2.12950735]
[1717433800529,0.54840971,3769.9,3769.3,2.12950735]
[1717433800731,0.54840971,3769.9,3769.3,1.32126577]
[1717433801106,0.54840971,3770.0,3769.3,1.32126577]
[1717433801305,1.67160774,3770.0,3769.3,1.32126577]
[1717433801506,0.44768492,3769.9,3769.3,1.32126577]
[1717433801747,0.54840971,3770.0,3769.3,1.32126577]
[1717433802246,0.54840971,3770.1,3769.3,1.32126577]
[1717433802449,1.67122978,3770.1,3769.3,1.32126577]
[1717433802724,0.4474699,3770.0,3769.3,1.32126577]
[1717433802920,0.4474699,3770.0,3769.3,2.12950735]
[1717433803122,0.54840971,3770.1,3769.3,2.12950735]
[1717433803358,0.44735477,3770.0,3769.3,2.12950735]
[1717433803552,3.20084971,3770.2,3769.3,2.12950735]
[1717433803857,1.12253742,3770.1,3769.3,2.12950735]
[1717433804059,0.44735681,3770.0,3769.4,0.58412742]
[1717433804211,3.20084971,3770.2,3769.5,1.32126577]
[1717433804413,0.44725818,3770.1,3769.5,1.32126577]
[1717433805209,3.20084971,3770.2,3769.5,1.32126577]
[1717433805409,0.44718068,3770.1,3769.5,1.32126577]
[1717433806065,0.44718068,3770.1,3769.6,0.21295074]
[1717433806363,2.65244,3770.2,3769.7,1.32126577]
[1717433809412,2.65244,3770.2,3769.5,2.65285]
[1717433809726,2.65244,3770.2,3769.1,5.03319]
[1717433809925,2.65253,3770.0,3769.2,1.32126577]
[1717433811131,2.65253,3770.0,3769.2,2.12951135]
[1717433812858,2.65253,3770.0,3769.3,2.65298]
[1717433813059,2.65253,3770.0,3769.4,1.32126577]
[1717433813359,1.57585994,3770.2,3769.4,1.32126577]
[1717433814458,1.57585994,3770.2,3769.2,0.80824558]
[1717433814459,1.57585994,3770.2,3769.6,1.32126577]
[1717433814880,1.57585994,3770.3,3769.6,1.32126577]
[1717433815012,1.57585994,3770.4,3769.6,1.32126577]
[1717433815216,1.57585994,3770.3,3769.6,1.32126577]
[1717433815417,1.57585994,3770.3,3769.8,2.4438]
[1717433815613,1.5753972,3770.4,3769.9,4.35035235]
[1717433815866,3.20036971,3770.8,3769.9,3.97384577]
[1717433815867,1.5753972,3770.5,3769.9,3.97384577]
[1717433816272,2.14870002,3770.4,3769.9,3.97384577]
[1717433816440,1.5753972,3770.4,3769.9,3.97384577]
[1717433816643,1.5753972,3770.4,3770.0,0.64176458]
[1717433816850,1.5753972,3770.4,3770.1,1.32126577]
[1717433817829,0.57331029,3770.3,3770.1,1.32126577]
[1717433818058,1.57543301,3770.4,3770.1,1.32126577]
[1717433818237,2.1487433,3770.3,3770.1,1.32126577]
[1717433818454,1.57543301,3770.4,3770.1,2.02720681]
[1717433818653,2.14874196,3770.3,3770.1,1.32126577]
[1717433819131,1.57543301,3770.3,3770.1,1.32126577]
[1717433819326,1.57543301,3770.2,3770.1,1.32126577]
[1717433819962,0.57330895,3770.2,3770.1,1.32126577]
[1717433820167,1.57543301,3770.2,3770.1,1.32126577]
[1717433820363,1.57543301,3770.3,3770.1,1.32126577]
[1717433820573,0.57330895,3770.2,3770.1,1.32126577]
[1717433820729,1.57543301,3770.3,3769.6,2.65279]
[1717433820929,1.57543301,3770.2,3769.7,2.00165477]
[1717433822269,3.20057971,3770.5,3769.7,2.00165477]
[1717433822442,2.14885407,3770.1,3769.7,2.00165477]
[1717433822632,1.57552552,3770.1,3769.7,1.32126577]
[1717433822834,1.57552552,3770.0,3769.7,1.32126577]
[1717433823634,2.14885407,3769.9,3769.7,1.32126577]
[1717433823833,1.57560136,3769.9,3769.7,1.32126577]
[1717433824230,2.14896489,3769.9,3769.7,1.32126577]
[1717433824631,1.57560136,3769.9,3769.3,9.973]
[1717433824948,1.57560136,3769.8,3769.4,1.32126577]
[1717433825143,2.14896489,3769.8,3769.4,1.32126577]
[1717433825344,1.57560136,3769.8,3769.4,1.32126577]
[1717433825744,2.14896489,3769.8,3769.4,1.32126577]
[1717433825959,1.57560136,3769.6,3769.4,1.32126577]
[1717433826273,2.14896489,3769.5,3769.4,1.32126577]
[1717433826474,0.57336353,3769.5,3769.4,1.32126577]
[1717433826641,1.57560136,3769.6,3769.4,1.32126577]
[1717433826975,0.57336353,3769.7,3768.7,2.65343]
[1717433826976,2.14896489,3769.5,3768.7,2.65343]
[1717433827173,2.43393488,3769.4,3768.8,3.09233953]
[1717433827471,1.57560136,3769.2,3768.8,1.32126577]
[1717433827693,0.28502596,3769.1,3768.8,1.32126577]
[1717433827845,2.98813793,3769.1,3768.8,1.32126577]
[1717433828172,2.43408778,3769.0,3768.8,1.32126577]
[1717433828369,0.57336353,3769.0,3768.8,1.32126577]
[1717433828570,1.57560136,3769.1,3768.8,1.32126577]
[1717433828789,0.57348867,3769.1,3768.8,1.32126577]
[1717433828940,2.12401107,3769.2,3768.8,1.32126577]
[1717433829157,0.83926566,3769.1,3768.8,1.32126577]
[1717433829448,0.83929479,3769.0,3768.8,1.32126577]
[1717433829651,0.54840971,3769.1,3768.8,1.32126577]
[1717433829836,0.55439227,3769.1,3768.9,0.19667734]
[1717433830034,2.12401107,3769.2,3769.0,1.32126577]
[1717433830262,1.38785467,3769.1,3769.0,1.32126577]
[1717433830575,0.28502991,3769.1,3769.0,3.79886577]
[1717433830747,0.28502991,3769.1,3769.0,4.46376108]
[1717433830956,0.28502991,3769.2,3769.0,4.46376108]
[1717433831162,0.55461684,3769.2,3769.0,4.46376108]
[1717433831372,0.55461684,3769.2,3769.0,1.98616108]
[1717433831561,0.55461684,3769.2,3769.0,1.32126577]
[1717433831562,0.28522224,3769.1,3769.0,1.32126577]
[1717433831778,0.8400267,3769.1,3769.0,1.32126577]
[1717433831948,1.38843641,3769.1,3769.0,1.32126577]
[1717433833983,0.8400267,3769.1,3768.5,1.728]
[1717433834158,0.54989118,3768.9,3768.6,1.32126577]
[1717433834362,0.8400267,3769.0,3768.6,1.32126577]
[1717433834363,1.38991788,3768.8,3768.6,1.32126577]
[1717433834663,1.38991788,3768.8,3768.1,4.0239]
[1717433834664,0.8400267,3768.7,3768.1,2.2959]
[1717433834867,1.38999568,3768.6,3768.2,1.67430314]
[1717433835081,0.54996898,3768.4,3768.2,1.67430314]
[1717433835276,0.28522224,3768.3,3768.2,1.67430314]
[1717433835590,0.8403409,3768.3,3768.2,1.67430314]
[1717433835769,0.28522224,3768.3,3768.2,1.67430314]
[1717433835953,0.83965313,3768.3,3768.2,1.67430314]
[1717433836353,0.28522224,3768.3,3768.2,1.67430314]
[1717433836786,0.8397604,3768.3,3768.2,1.67430314]
[1717433837810,0.28522224,3768.3,3768.2,5.73570314]
[1717433838098,0.54996898,3768.8,3768.3,2.65371]
[1717433838248,0.28452189,3768.7,3768.4,2.16020708]
[1717433838454,0.54996898,3768.8,3768.4,2.16020708]
[1717433838691,0.83904186,3768.7,3768.4,2.16020708]
[1717433838867,0.54996898,3768.8,3768.5,2.65357]
[1717433839090,0.54996898,3768.9,3768.7,2.65343]
[1717433839399,0.54996898,3768.9,3768.6,3.04926577]
[1717433839400,0.54996898,3769.1,3768.9,2.65329]
[1717433839561,0.54996898,3769.2,3769.0,3.69016577]
[1717433839891,0.83914688,3769.1,3769.0,1.32126577]
[1717433840050,0.83914688,3769.1,3769.0,1.77574831]
[1717433840494,1.38911586,3769.1,3769.0,1.77574831]
[1717433841490,0.83914688,3769.1,3769.0,1.77574831]
[1717433842372,0.28455794,3769.1,3769.0,1.77574831]
[1717433842556,0.83781823,3769.1,3769.0,1.77574831]
[1717433843396,0.28455794,3769.1,3769.0,1.77574831]
[1717433843557,0.28276577,3769.1,3769.0,1.77574831]
[1717433843996,0.83604503,3769.1,3769.0,1.77574831]
[1717433844375,0.54996898,3769.3,3769.0,1.77574831]
[1717433844679,0.28276546,3769.2,3769.1,0.77933079]
[1717433844879,0.28276546,3769.2,3769.1,2.10059656]
[1717433844880,1.38605747,3769.2,3769.1,2.10059656]
[1717433845466,1.38605747,3769.2,3768.5,5.02241]
[1717433845796,0.28276546,3769.1,3768.6,1.32126577]
[1717433846009,1.38603752,3769.0,3768.6,1.32126577]
[1717433846208,0.28276798,3768.9,3768.6,1.32126577]
[1717433846410,0.28276477,3768.8,3768.6,1.32126577]
[1717433846624,0.54996898,3769.0,3768.6,1.71874335]
[1717433846773,0.8360539,3768.9,3768.6,1.71874335]
[1717433846974,0.54996898,3769.0,3768.6,1.71874335]
[1717433847295,0.28276993,3768.9,3768.6,1.71874335]
[1717433847490,0.54996898,3769.0,3768.6,1.71874335]
[1717433847669,0.28276522,3768.9,3768.7,0.43722533]
[1717433847873,0.54996898,3769.0,3768.8,1.32126577]
[1717433848111,0.28278152,3768.9,3768.8,1.32126577]
[1717433849369,0.8361301,3768.9,3768.8,1.32126577]
[1717433849789,1.3861055,3768.9,3768.8,1.32126577]
[1717433849982,1.38610206,3768.9,3768.8,1.32126577]
[1717433850413,0.83613308,3768.9,3768.8,1.32126577]
[1717433850990,1.38610206,3768.9,3768.8,1.32126577]
[1717433851321,1.38610206,3768.9,3768.1,9.97378]
[1717433851542,0.55015171,3768.6,3768.2,1.32126577]
[1717433851739,1.38628479,3768.5,3768.2,1.32126577]
[1717433852049,5.4235385,3768.9,3768.2,1.32126577]
[1717433852050,1.38628479,3768.4,3768.2,1.32126577]
[1717433852315,0.28279294,3768.3,3768.2,1.32126577]
[1717433852527,0.28279294,3768.3,3767.8,2.65406]
[1717433852732,0.55015171,3768.4,3767.9,1.75947177]
[1717433852930,0.82261457,3768.6,3767.9,1.75947177]
[1717433852931,1.38603431,3768.3,3767.9,1.75947177]
[1717433853078,0.8358826,3768.2,3767.9,1.75947177]
[1717433853273,0.55015171,3768.3,3767.9,1.75947177]
[1717433853483,0.28269335,3768.2,3767.9,1.75947177]
[1717433853699,0.55015171,3768.3,3767.9,1.75947177]
[1717433853909,0.83577864,3768.2,3767.9,1.75947177]
[1717433854097,0.2826928,3768.1,3767.9,1.75947177]
[1717433854433,0.55015171,3768.3,3767.9,1.75947177]
[1717433854745,1.38584508,3768.2,3767.9,1.32126577]
[1717433854900,1.38584508,3768.1,3767.9,1.32126577]
[1717433855104,0.28266058,3768.0,3767.9,1.32126577]
[1717433856417,0.55015171,3768.2,3767.9,1.32126577]
[1717433856724,0.83536471,3768.1,3767.9,1.32126577]
[1717433857023,0.28255221,3768.0,3767.9,1.32126577]
[1717433857549,0.83539586,3768.1,3767.9,1.32126577]
[1717433857734,0.55015171,3768.2,3767.9,1.32126577]